[Event "Vastgota Open 2023"]
[Site "Skara stadshotell, Jarnvagsgatan 5, Skara, Sweden"]
[Date "2023.02.18"]
[Round "4.10"]
[White "Cederqvist, Niclas"]
[Black "Cramling, Pia"]
[Result "1-0"]
[TimeControl "15 minutes + 5 seconds per move from move one (Round 1 - 2) / 30 minutes + 10 seconds per move from move one (Round 3 - 9)"]
[BlackTitle "GM"]
[WhiteFideId "1702076"]
[BlackFideId "1700030"]
[WhiteElo "1938"]
[BlackElo "2429"]

1. d4 {[%clk 00:30:15]} {[%emt 00:00:04]} Nf6 {[%clk 00:30:17]} {[%emt
00:00:04]} 2. Nf3 {[%clk 00:30:17]} {[%emt 00:00:08]} c5 {[%clk 00:29:54]}
{[%emt 00:00:33]} 3. e3 {[%clk 00:29:31]} {[%emt 00:00:56]} g6 {[%clk
00:29:47]} {[%emt 00:00:15]} 4. Be2 {[%clk 00:29:17]} {[%emt 00:00:26]} Bg7
{[%clk 00:29:44]} {[%emt 00:00:13]} 5. O-O {[%clk 00:29:12]} {[%emt 00:00:15]}
O-O {[%clk 00:29:50]} {[%emt 00:00:04]} 6. b3 {[%clk 00:27:30]} {[%emt
00:01:53]} d5 {[%clk 00:28:37]} {[%emt 00:01:23]} 7. Bb2 {[%clk 00:27:29]}
{[%emt 00:00:11]} cxd4 {[%clk 00:27:44]} {[%emt 00:01:03]} 8. exd4 {[%clk
00:25:22]} {[%emt 00:02:17]} Nc6 {[%clk 00:26:36]} {[%emt 00:01:18]} 9. Ne5
{[%clk 00:22:14]} {[%emt 00:03:17]} Qb6 {[%clk 00:25:10]} {[%emt 00:01:36]} 10.
Nxc6 {[%clk 00:21:59]} {[%emt 00:00:25]} bxc6 {[%clk 00:25:11]} {[%emt
00:00:09]} 11. Nc3 {[%clk 00:20:26]} {[%emt 00:01:43]} Nd7 {[%clk 00:24:43]}
{[%emt 00:00:38]} 12. Na4 {[%clk 00:20:17]} {[%emt 00:00:19]} Qb8 {[%clk
00:24:51]} {[%emt 00:00:03]} 13. Ba3 {[%clk 00:20:00]} {[%emt 00:00:27]} Re8
{[%clk 00:24:58]} {[%emt 00:00:02]} 14. Nc5 {[%clk 00:20:00]} {[%emt 00:00:11]}
e5 {[%clk 00:21:26]} {[%emt 00:03:42]} 15. Nxd7 {[%clk 00:17:59]} {[%emt
00:02:11]} Bxd7 {[%clk 00:21:35]} {[%emt 00:00:01]} 16. c3 {[%clk 00:16:23]}
{[%emt 00:01:46]} a5 {[%clk 00:21:41]} {[%emt 00:00:04]} 17. Bc5 {[%clk
00:15:32]} {[%emt 00:01:00]} e4 {[%clk 00:20:53]} {[%emt 00:00:58]} 18. b4
{[%clk 00:15:15]} {[%emt 00:00:28]} f5 {[%clk 00:19:53]} {[%emt 00:01:10]} 19.
bxa5 {[%clk 00:13:58]} {[%emt 00:01:28]} Rxa5 {[%clk 00:19:59]} {[%emt
00:00:03]} 20. a4 {[%clk 00:12:57]} {[%emt 00:01:11]} f4 {[%clk 00:11:55]}
{[%emt 00:08:15]} 21. Bb4 {[%clk 00:12:42]} {[%emt 00:00:23]} Ra7 {[%clk
00:10:20]} {[%emt 00:01:45]} 22. Bc5 {[%clk 00:12:18]} {[%emt 00:00:34]} Ra5
{[%clk 00:09:26]} {[%emt 00:01:04]} 23. Bb4 {[%clk 00:12:25]} {[%emt 00:00:04]}
Ra8 {[%clk 00:09:21]} {[%emt 00:00:16]} 24. Bg4 {[%clk 00:12:29]} {[%emt
00:00:05]} Qc8 {[%clk 00:09:20]} {[%emt 00:00:11]} 25. Bxd7 {[%clk 00:12:31]}
{[%emt 00:00:07]} Qxd7 {[%clk 00:09:30]} 26. a5 {[%clk 00:12:27]} {[%emt
00:00:14]} Qf5 {[%clk 00:08:14]} {[%emt 00:01:25]} 27. f3 {[%clk 00:12:08]}
{[%emt 00:00:28]} e3 {[%clk 00:07:43]} {[%emt 00:00:43]} 28. Qe2 {[%clk
00:12:10]} {[%emt 00:00:08]} Bf8 {[%clk 00:07:47]} {[%emt 00:00:06]} 29. Rfb1
{[%clk 00:12:02]} {[%emt 00:00:18]} Reb8 {[%clk 00:07:49]} {[%emt 00:00:08]} 30.
g3 {[%clk 00:09:51]} {[%emt 00:02:21]} g5 {[%clk 00:07:10]} {[%emt 00:00:48]}
31. gxf4 {[%clk 00:07:56]} {[%emt 00:02:06]} gxf4 {[%clk 00:07:17]} {[%emt
00:00:03]} 32. Rb2 {[%clk 00:07:18]} {[%emt 00:00:48]} Bxb4 {[%clk 00:06:22]}
{[%emt 00:01:05]} 33. Rxb4 {[%clk 00:07:17]} {[%emt 00:00:10]} Kf7 {[%clk
00:05:45]} {[%emt 00:00:48]} 34. Kh1 {[%clk 00:07:07]} {[%emt 00:00:20]} Ke6
{[%clk 00:04:30]} {[%emt 00:01:25]} 35. a6 {[%clk 00:06:53]} {[%emt 00:00:24]}
Qf8 {[%clk 00:03:35]} {[%emt 00:01:04]} 36. Rab1 {[%clk 00:06:16]} {[%emt
00:00:48]} Rxb4 {[%clk 00:03:33]} {[%emt 00:00:12]} 37. Rxb4 {[%clk 00:05:18]}
{[%emt 00:01:09]} Qf5 {[%clk 00:03:08]} {[%emt 00:00:34]} 38. Rb7 {[%clk
00:05:12]} {[%emt 00:00:16]} Kd6 {[%clk 00:02:15]} {[%emt 00:01:03]} 39. Qb2
{[%clk 00:05:01]} {[%emt 00:00:21]} Ke6 {[%clk 00:01:09]} {[%emt 00:01:15]} 40.
Qb4 {[%clk 00:05:00]} {[%emt 00:00:11]} Qf8 {[%clk 00:01:07]} {[%emt 00:00:13]}
41. Qxf8 {[%clk 00:03:33]} {[%emt 00:01:37]} Rxf8 {[%clk 00:01:15]} {[%emt
00:00:01]} 42. Kg2 {[%clk 00:03:42]} {[%emt 00:00:01]} Rg8+ {[%clk 00:00:31]}
{[%emt 00:00:54]} 43. Kf1 {[%clk 00:03:44]} {[%emt 00:00:08]} h5 {[%clk
00:00:26]} {[%emt 00:00:15]} 44. a7 {[%clk 00:03:42]} {[%emt 00:00:13]} e2+
{[%clk 00:00:27]} {[%emt 00:00:09]} 45. Kxe2 {[%clk 00:03:49]} {[%emt
00:00:03]} Rg2+ {[%clk 00:00:36]} 46. Kd3 {[%clk 00:03:46]} {[%emt 00:00:14]}
Ra2 {[%clk 00:00:44]} {[%emt 00:00:01]} 47. h4 {[%clk 00:03:42]} {[%emt
00:00:15]} Kd6 {[%clk 00:00:47]} {[%emt 00:00:06]} 48. Rf7 {[%clk 00:03:41]}
{[%emt 00:00:12]} Ke6 {[%clk 00:00:52]} {[%emt 00:00:04]} 49. Rc7 {[%clk
00:03:31]} {[%emt 00:00:20]} Kd6 {[%clk 00:01:01]} 50. Rh7 {[%clk 00:03:37]}
{[%emt 00:00:06]} Ke6 {[%clk 00:00:59]} {[%emt 00:00:11]} 51. Rh6+ {[%clk
00:03:29]} {[%emt 00:00:19]} Kf5 {[%clk 00:01:03]} {[%emt 00:00:02]} 52. Rxh5+
{[%clk 00:03:37]} {[%emt 00:00:06]} Kg6 {[%clk 00:01:11]} {[%emt 00:00:01]} 53.
Rg5+ {[%clk 00:03:44]} {[%emt 00:00:03]} Kh6 {[%clk 00:01:20]} 54. Rg4 {[%clk
00:03:50]} {[%emt 00:00:06]} Rxa7 {[%clk 00:01:24]} {[%emt 00:00:06]} 55. Rxf4
{[%clk 00:03:58]} {[%emt 00:00:02]} Kg6 {[%clk 00:01:25]} {[%emt 00:00:09]} 56.
Rf8 {[%clk 00:03:58]} {[%emt 00:00:09]} Rc7 {[%clk 00:01:10]} {[%emt 00:00:25]}
57. Ke3 {[%clk 00:03:59]} {[%emt 00:00:10]} Kg7 {[%clk 00:01:10]} {[%emt
00:00:10]} 58. Rd8 {[%clk 00:04:07]} {[%emt 00:00:02]} Kg6 {[%clk 00:00:54]}
{[%emt 00:00:26]} 59. Kf4 {[%clk 00:04:10]} {[%emt 00:00:07]} Rf7+ {[%clk
00:00:25]} {[%emt 00:00:39]} 60. Kg4 {[%clk 00:04:16]} {[%emt 00:00:04]} Rf6
{[%clk 00:00:26]} {[%emt 00:00:09]} 61. h5+ {[%clk 00:04:19]} {[%emt 00:00:07]}
Kf7 {[%clk 00:00:27]} {[%emt 00:00:08]} 62. f4 {[%clk 00:04:23]} {[%emt
00:00:07]} 1-0

[Event "Vastgota Open 2023"]
[Site "Skara stadshotell, Jarnvagsgatan 5, Skara, Sweden"]
[Date "2023.02.18"]
[Round "4.11"]
[White "Silseth, Simon"]
[Black "Johansson, Stefan"]
[Result "1-0"]
[TimeControl "15 minutes + 5 seconds per move from move one (Round 1 - 2) / 30 minutes + 10 seconds per move from move one (Round 3 - 9)"]
[WhiteTitle "FM"]
[WhiteFideId "1702440"]
[BlackFideId "1733745"]
[WhiteElo "2258"]
[BlackElo "1930"]

1. d4 {[%clk 00:30:14]} {[%emt 00:00:06]} e6 {[%clk 00:30:14]} {[%emt
00:00:07]} 2. c4 {[%clk 00:30:21]} {[%emt 00:00:02]} f5 {[%clk 00:30:18]}
{[%emt 00:00:07]} 3. g3 {[%clk 00:30:16]} {[%emt 00:00:14]} Nf6 {[%clk
00:30:16]} {[%emt 00:00:12]} 4. Bg2 {[%clk 00:30:21]} {[%emt 00:00:05]} d5
{[%clk 00:29:57]} {[%emt 00:00:30]} 5. Nc3 {[%clk 00:30:16]} {[%emt 00:00:15]}
c6 {[%clk 00:29:44]} {[%emt 00:00:22]} 6. cxd5 {[%clk 00:29:50]} {[%emt
00:00:35]} exd5 {[%clk 00:29:39]} {[%emt 00:00:16]} 7. Nh3 {[%clk 00:29:53]}
{[%emt 00:00:07]} Bb4 {[%clk 00:28:22]} {[%emt 00:01:27]} 8. O-O {[%clk
00:29:36]} {[%emt 00:00:27]} O-O {[%clk 00:28:23]} {[%emt 00:00:10]} 9. Qb3
{[%clk 00:27:42]} {[%emt 00:02:04]} Qe7 {[%emt 00:02:06]} 10. Nf4 {[%clk
00:26:02]} {[%emt 00:01:47]} a5 {[%clk 00:22:14]} {[%emt 00:04:25]} 11. h4
{[%clk 00:23:12]} {[%emt 00:03:01]} Ne4 {[%emt 00:04:03]} 12. Nd3 {[%clk
00:21:37]} {[%emt 00:01:08]} Bxc3 {[%clk 00:17:52]} {[%emt 00:01:16]} 13. bxc3
{[%clk 00:21:03]} {[%emt 00:00:43]} a4 {[%clk 00:16:50]} {[%emt 00:01:12]} 14.
Qc2 {[%clk 00:18:42]} {[%emt 00:02:32]} Nd7 {[%clk 00:16:56]} {[%emt 00:00:03]}
15. c4 {[%clk 00:17:29]} {[%emt 00:01:23]} Nb6 {[%clk 00:13:20]} {[%emt
00:03:46]} 16. cxd5 {[%clk 00:16:34]} {[%emt 00:01:05]} cxd5 {[%clk 00:13:27]}
{[%emt 00:00:03]} 17. Ne5 {[%clk 00:16:06]} {[%emt 00:00:37]} Be6 {[%clk
00:12:52]} {[%emt 00:00:46]} 18. Rb1 {[%clk 00:13:56]} {[%emt 00:02:20]} Rfc8
{[%clk 00:11:49]} {[%emt 00:01:13]} 19. Qd3 {[%clk 00:10:54]} {[%emt 00:03:13]}
Nc4 {[%clk 00:11:18]} {[%emt 00:00:41]} 20. Bg5 {[%clk 00:09:57]} {[%emt
00:01:06]} Nxg5 {[%clk 00:10:46]} {[%emt 00:00:43]} 21. hxg5 {[%clk 00:10:04]}
{[%emt 00:00:02]} Nd6 {[%clk 00:09:22]} {[%emt 00:01:35]} 22. Qa3 {[%clk
00:08:39]} {[%emt 00:01:34]} Qd8 {[%clk 00:07:24]} {[%emt 00:02:09]} 23. Rfc1
{[%clk 00:08:26]} {[%emt 00:00:23]} Ne4 {[%clk 00:06:31]} {[%emt 00:01:03]} 24.
g6 {[%clk 00:06:17]} {[%emt 00:02:18]} hxg6 {[%clk 00:04:54]} {[%emt 00:01:48]}
25. Nxg6 {[%clk 00:06:10]} {[%emt 00:00:17]} Rxc1+ {[%emt 00:00:26]} 26. Rxc1
{[%clk 00:05:53]} {[%emt 00:00:08]} Qd6 {[%clk 00:04:44]} {[%emt 00:00:23]} 27.
Qxd6 {[%clk 00:05:25]} {[%emt 00:00:37]} Nxd6 {[%clk 00:04:52]} {[%emt
00:00:02]} 28. Bxd5 {[%clk 00:04:45]} {[%emt 00:00:50]} Bxd5 {[%clk 00:03:38]}
{[%emt 00:01:24]} 29. Ne7+ {[%clk 00:04:53]} {[%emt 00:00:02]} Kf7 {[%clk
00:03:40]} {[%emt 00:00:08]} 30. Nxd5 {[%clk 00:05:01]} {[%emt 00:00:02]} b5
{[%clk 00:03:48]} {[%emt 00:00:02]} 31. Rc7+ {[%clk 00:05:03]} {[%emt
00:00:08]} Kg6 {[%clk 00:03:18]} {[%emt 00:00:41]} 32. Rc6 {[%clk 00:05:08]}
{[%emt 00:00:05]} Rd8 {[%clk 00:03:27]} 33. Nc3 {[%clk 00:03:53]} {[%emt
00:01:25]} Kg5 {[%clk 00:03:24]} {[%emt 00:00:13]} 34. e3 {[%clk 00:03:49]}
{[%emt 00:00:14]} Kg4 {[%clk 00:02:46]} {[%emt 00:00:49]} 35. Kg2 {[%clk
00:03:52]} {[%emt 00:00:06]} g5 {[%clk 00:02:55]} {[%emt 00:00:02]} 36. Rc5
{[%clk 00:03:50]} {[%emt 00:00:10]} f4 {[%clk 00:03:03]} {[%emt 00:00:04]} 37.
f3+ {[%clk 00:03:54]} {[%emt 00:00:06]} Kh5 {[%clk 00:03:01]} {[%emt 00:00:12]}
38. gxf4 {[%clk 00:03:58]} {[%emt 00:00:06]} b4 {[%clk 00:02:23]} {[%emt
00:00:48]} 39. Nxa4 {[%clk 00:03:10]} {[%emt 00:00:57]} Ra8 {[%clk 00:02:30]}
{[%emt 00:00:03]} 40. Rxg5+ {[%clk 00:03:17]} {[%emt 00:00:04]} Kh4 {[%clk
00:02:28]} {[%emt 00:00:12]} 41. Rg7 {[%clk 00:02:41]} {[%emt 00:00:45]} Kh5
{[%clk 00:02:26]} {[%emt 00:00:13]} 42. Rd7 {[%clk 00:02:17]} {[%emt 00:00:32]}
Nc4 {[%clk 00:02:27]} {[%emt 00:00:10]} 43. Rc7 {[%clk 00:01:30]} {[%emt
00:00:57]} Nxe3+ {[%clk 00:02:34]} {[%emt 00:00:04]} 44. Kf2 {[%clk 00:01:37]}
{[%emt 00:00:03]} Nd1+ {[%clk 00:02:34]} {[%emt 00:00:10]} 45. Ke1 {[%clk
00:01:39]} {[%emt 00:00:07]} Nc3 {[%clk 00:02:42]} {[%emt 00:00:02]} 46. Nxc3
{[%clk 00:01:43]} {[%emt 00:00:07]} bxc3 {[%clk 00:02:45]} {[%emt 00:00:07]} 47.
Rxc3 {[%clk 00:01:51]} {[%emt 00:00:01]} Rxa2 {[%clk 00:02:55]} 48. Re3 {[%clk
00:01:56]} {[%emt 00:00:05]} Kg6 {[%clk 00:03:03]} {[%emt 00:00:03]} 49. Re5
{[%clk 00:01:58]} {[%emt 00:00:08]} Kf6 {[%clk 00:03:11]} {[%emt 00:00:02]} 50.
d5 {[%clk 00:02:06]} {[%emt 00:00:02]} Ra4 {[%clk 00:03:19]} 51. Re4 {[%clk
00:02:13]} {[%emt 00:00:04]} Ra5 {[%clk 00:03:26]} {[%emt 00:00:03]} 52. Rd4
{[%clk 00:02:21]} {[%emt 00:00:03]} Ke7 {[%clk 00:03:35]} {[%emt 00:00:01]} 53.
f5 {[%clk 00:02:14]} {[%emt 00:00:17]} Kd6 {[%clk 00:03:36]} {[%emt 00:00:08]}
54. Ke2 {[%clk 00:02:13]} {[%emt 00:00:12]} Rxd5 {[%clk 00:03:44]} 55. Ke3
{[%clk 00:02:22]} {[%emt 00:00:01]} Rxd4 56. Kxd4 {[%clk 00:02:31]} Ke7 {[%clk
00:03:59]} {[%emt 00:00:02]} 57. Ke5 {[%clk 00:02:40]} {[%emt 00:00:01]} Kf7
{[%clk 00:04:08]} 58. f6 {[%clk 00:02:49]} {[%emt 00:00:02]} Kf8 {[%clk
00:04:15]} {[%emt 00:00:03]} 59. Ke6 {[%clk 00:02:56]} {[%emt 00:00:03]} Ke8
{[%clk 00:04:24]} {[%emt 00:00:01]} 60. f7+ {[%clk 00:03:01]} {[%emt 00:00:04]}
1-0

[Event "Vastgota Open 2023"]
[Site "Skara stadshotell, Jarnvagsgatan 5, Skara, Sweden"]
[Date "2023.02.18"]
[Round "4.12"]
[White "Svensson, Leif"]
[Black "Ronneland, Daniel"]
[Result "0-1"]
[TimeControl "15 minutes + 5 seconds per move from move one (Round 1 - 2) / 30 minutes + 10 seconds per move from move one (Round 3 - 9)"]
[WhiteFideId "1702459"]
[BlackFideId "1702130"]
[WhiteElo "1935"]
[BlackElo "2188"]

1. d4 {[%clk 00:30:18]} {[%emt 00:00:01]} Nf6 {[%clk 00:30:14]} {[%emt
00:00:06]} 2. Nc3 {[%clk 00:30:22]} {[%emt 00:00:06]} d5 {[%clk 00:29:04]}
{[%emt 00:01:20]} 3. Bf4 {[%clk 00:30:25]} {[%emt 00:00:07]} e6 {[%clk
00:28:49]} {[%emt 00:00:25]} 4. e3 {[%clk 00:30:30]} {[%emt 00:00:05]} Be7
{[%clk 00:28:41]} {[%emt 00:00:18]} 5. Nf3 {[%clk 00:29:09]} {[%emt 00:01:32]}
O-O {[%clk 00:26:45]} {[%emt 00:02:06]} 6. Ne5 {[%clk 00:28:49]} {[%emt
00:00:30]} c5 {[%clk 00:26:30]} {[%emt 00:00:25]} 7. dxc5 {[%clk 00:26:22]}
{[%emt 00:02:37]} Qa5 {[%clk 00:24:29]} {[%emt 00:02:09]} 8. Bd3 {[%clk
00:25:54]} {[%emt 00:00:40]} Nbd7 {[%clk 00:21:57]} {[%emt 00:02:42]} 9. Nxd7
{[%clk 00:23:45]} {[%emt 00:02:19]} Bxd7 {[%clk 00:21:12]} {[%emt 00:00:55]} 10.
O-O {[%clk 00:23:48]} {[%emt 00:00:07]} Rac8 {[%clk 00:20:15]} {[%emt
00:01:07]} 11. a3 {[%clk 00:23:38]} {[%emt 00:00:20]} Qxc5 {[%clk 00:20:07]}
{[%emt 00:00:17]} 12. Qf3 {[%clk 00:22:21]} {[%emt 00:01:26]} Bc6 {[%clk
00:18:19]} {[%emt 00:01:59]} 13. Qh3 {[%clk 00:19:56]} {[%emt 00:02:35]} g6
{[%clk 00:17:13]} {[%emt 00:01:15]} 14. Be5 {[%clk 00:18:28]} {[%emt 00:01:39]}
Nd7 {[%clk 00:12:16]} {[%emt 00:05:07]} 15. Bd4 {[%clk 00:18:33]} {[%emt
00:00:06]} Qd6 {[%clk 00:11:57]} {[%emt 00:00:27]} 16. f4 {[%clk 00:18:22]}
{[%emt 00:00:22]} f5 {[%clk 00:08:36]} {[%emt 00:03:30]} 17. g4 {[%clk
00:16:20]} {[%emt 00:02:13]} Bf6 {[%clk 00:07:36]} {[%emt 00:01:09]} 18. Rae1
{[%clk 00:13:55]} {[%emt 00:02:36]} Bxd4 {[%clk 00:07:03]} {[%emt 00:00:44]} 19.
exd4 {[%clk 00:14:02]} {[%emt 00:00:03]} Nf6 {[%clk 00:07:07]} {[%emt
00:00:06]} 20. gxf5 {[%clk 00:13:05]} {[%emt 00:01:07]} exf5 {[%clk 00:07:07]}
{[%emt 00:00:10]} 21. Re5 {[%clk 00:12:40]} {[%emt 00:00:34]} Rce8 {[%clk
00:06:23]} {[%emt 00:00:53]} 22. Qg2 {[%clk 00:09:58]} {[%emt 00:02:53]} Ng4
{[%clk 00:05:50]} {[%emt 00:00:43]} 23. Rxe8 {[%clk 00:07:14]} {[%emt
00:02:55]} Rxe8 {[%clk 00:05:55]} {[%emt 00:00:05]} 24. Nd1 {[%clk 00:07:22]}
{[%emt 00:00:01]} Qe6 {[%clk 00:02:16]} {[%emt 00:03:48]} 25. Qf3 {[%clk
00:03:44]} {[%emt 00:03:50]} Nf6 {[%clk 00:02:17]} {[%emt 00:00:09]} 26. c3
{[%clk 00:03:29]} {[%emt 00:00:25]} Ne4 {[%clk 00:02:12]} {[%emt 00:00:14]} 27.
Qg2 {[%clk 00:03:03]} {[%emt 00:00:36]} a6 {[%clk 00:01:33]} {[%emt 00:00:50]}
28. Re1 {[%clk 00:02:48]} {[%emt 00:00:25]} Qf6 {[%clk 00:01:38]} {[%emt
00:00:03]} 29. Re3 {[%clk 00:02:24]} {[%emt 00:00:36]} Qh4 {[%clk 00:01:35]}
{[%emt 00:00:13]} 30. Qf3 {[%clk 00:01:48]} {[%emt 00:00:46]} b5 {[%clk
00:01:34]} {[%emt 00:00:11]} 31. Qh3 {[%clk 00:01:23]} {[%emt 00:00:35]} Qxf4
{[%clk 00:01:26]} {[%emt 00:00:17]} 32. Qg2 {[%clk 00:00:42]} {[%emt 00:00:52]}
Qh4 {[%clk 00:01:15]} {[%emt 00:00:21]} 33. Be2 {[%clk 00:00:27]} {[%emt
00:00:24]} Qe1+ {[%clk 00:01:17]} {[%emt 00:00:08]} 34. Qf1 {[%clk 00:00:36]}
{[%emt 00:00:01]} Qxf1+ {[%clk 00:01:21]} {[%emt 00:00:07]} 35. Bxf1 {[%clk
00:00:43]} {[%emt 00:00:02]} f4 {[%clk 00:01:25]} {[%emt 00:00:06]} 36. Rf3
{[%clk 00:00:48]} {[%emt 00:00:06]} g5 {[%clk 00:01:29]} {[%emt 00:00:06]} 37.
h4 {[%clk 00:00:51]} {[%emt 00:00:07]} h6 {[%clk 00:01:38]} {[%emt 00:00:01]}
38. hxg5 {[%clk 00:01:00]} hxg5 {[%clk 00:01:47]} {[%emt 00:00:01]} 39. Bh3
{[%clk 00:01:07]} {[%emt 00:00:03]} Nd2 {[%clk 00:01:45]} {[%emt 00:00:11]} 40.
Rd3 {[%clk 00:01:02]} {[%emt 00:00:16]} Ne4 {[%clk 00:01:25]} {[%emt 00:00:30]}
41. Kg2 {[%clk 00:00:52]} {[%emt 00:00:20]} Kg7 {[%clk 00:01:32]} {[%emt
00:00:02]} 42. Kf3 {[%clk 00:01:01]} {[%emt 00:00:01]} Kf6 {[%clk 00:01:37]}
{[%emt 00:00:05]} 43. b3 {[%clk 00:01:07]} {[%emt 00:00:04]} Rh8 {[%clk
00:01:41]} {[%emt 00:00:07]} 44. Bg4 {[%clk 00:01:10]} {[%emt 00:00:06]} Rh2
{[%clk 00:01:34]} {[%emt 00:00:16]} 45. a4 {[%clk 00:01:19]} {[%emt 00:00:02]}
Nd2+ {[%clk 00:01:41]} {[%emt 00:00:04]} 0-1

[Event "Vastgota Open 2023"]
[Site "Skara stadshotell, Jarnvagsgatan 5, Skara, Sweden"]
[Date "2023.02.18"]
[Round "5.1"]
[White "Golubka, Petro"]
[Black "Seo, Jung Min"]
[Result "1/2-1/2"]
[TimeControl "15 minutes + 5 seconds per move from move one (Round 1 - 2) / 30 minutes + 10 seconds per move from move one (Round 3 - 9)"]
[WhiteTitle "GM"]
[BlackTitle "IM"]
[WhiteFideId "14114224"]
[BlackFideId "1734687"]
[WhiteElo "2407"]
[BlackElo "2448"]

1. e4 {[%clk 00:27:55]} {[%emt 00:02:24]} c6 {[%clk 00:30:19]} 2. d4 {[%clk
00:27:55]} {[%emt 00:00:11]} d5 {[%clk 00:30:28]} 3. f3 {[%clk 00:28:00]}
{[%emt 00:00:06]} e6 {[%clk 00:29:21]} {[%emt 00:01:17]} 4. Nc3 {[%clk
00:28:00]} {[%emt 00:00:09]} Nf6 {[%clk 00:29:26]} {[%emt 00:00:05]} 5. Nge2
{[%clk 00:27:27]} {[%emt 00:00:44]} dxe4 {[%clk 00:27:20]} {[%emt 00:02:16]} 6.
fxe4 {[%clk 00:26:55]} {[%emt 00:00:42]} e5 {[%clk 00:27:23]} {[%emt 00:00:06]}
7. Bg5 {[%clk 00:26:36]} {[%emt 00:00:29]} Nbd7 {[%clk 00:24:58]} {[%emt
00:02:35]} 8. dxe5 {[%clk 00:26:14]} {[%emt 00:00:32]} Nxe5 {[%clk 00:25:06]}
{[%emt 00:00:03]} 9. Qxd8+ {[%clk 00:26:19]} {[%emt 00:00:04]} Kxd8 {[%clk
00:25:15]} {[%emt 00:00:01]} 10. O-O-O+ {[%clk 00:26:22]} {[%emt 00:00:08]} Ke8
{[%clk 00:25:24]} {[%emt 00:00:01]} 11. h3 {[%clk 00:25:13]} {[%emt 00:01:19]}
Be7 {[%clk 00:24:42]} {[%emt 00:00:51]} 12. Bf4 {[%clk 00:25:09]} {[%emt
00:00:14]} Ng6 {[%clk 00:23:01]} {[%emt 00:01:51]} 13. Bh2 {[%clk 00:24:36]}
{[%emt 00:00:43]} Be6 {[%clk 00:22:24]} {[%emt 00:00:47]} 14. Nd4 {[%clk
00:22:09]} {[%emt 00:02:37]} Rd8 {[%clk 00:22:01]} {[%emt 00:00:33]} 15. e5
{[%clk 00:21:03]} {[%emt 00:01:16]} Nd5 {[%clk 00:22:03]} {[%emt 00:00:09]} 16.
Nxe6 {[%clk 00:19:13]} {[%emt 00:02:00]} fxe6 {[%clk 00:22:11]} {[%emt
00:00:02]} 17. Nxd5 {[%clk 00:19:03]} {[%emt 00:00:18]} exd5 {[%clk 00:21:29]}
{[%emt 00:00:54]} 18. Bd3 {[%clk 00:18:05]} {[%emt 00:01:08]} Bg5+ {[%clk
00:18:32]} {[%emt 00:03:06]} 19. Kb1 {[%clk 00:18:10]} {[%emt 00:00:05]} Ke7
{[%clk 00:18:15]} {[%emt 00:00:27]} 20. Rhf1 {[%clk 00:17:06]} {[%emt
00:01:12]} 1/2-1/2